Workbook

Sheet Example
A1: 2026 Abacus dx Emerging Investigators
A2: THIS IS JUST AN EXAMPLE FOR YOUR REFERENCE - FILL OUT THE "BUDGET ALLOCATION" SHEET FOR SUBMISSION
A3: Applicant: Gabriela Spaniol, Australian University
A4: Budget - By Supplier | C4: Suppliers:
A5: Merck | B5: =SUMIF(A17:A294, A5, D17:D294) -> $4,684.00
A6: Roche | B6: =SUMIF(A17:A294, A6, D17:D294) -> $377.00
A7: Vector Laboratories | B7: =SUMIF(A17:A294, A7, D17:D294) -> $1,013.00
A8: PeptiGrowth | B8: =SUMIF(A17:A294, A8, D17:D294) -> $3,615.00
A9: Cytek | B9: =SUMIF(A17:A294, A9, D17:D294) -> $468.00
A10: TriLink Biotech | B10: =SUMIF(A17:A294, A10, D17:D294) -> $1,319.33
A11: Jackson Immunoresearch | B11: =SUMIF(A17:A294, A11, D17:D294) -> $305.00
A12: Phoenix Pharmaceuticals | B12: =SUMIF(A17:A294, A12, D17:D294) -> $1,964.00
A13: Bethyl Laboratories | B13: =SUMIF(A17:A294, A13, D17:D294) -> $545.00
A14: nanoComposix | B14: =SUMIF(A17:A294, A14, D17:D294) -> $701.00
A15: Total Budget: | B15: =SUM(B5:B14) -> $14,991.33
A16: Supplier | B16: Item Number | C16: Description | D16: Value (AU$) | E16: Intended Use
A17: Vector Laboratories | B17: VEH100010 | C17: VECTASHIELD® Mounting Medium 10 ml | D17: $513.00 | E17: Explain here
A18: Vector Laboratories | B18: VEH4000 | C18: Vector ImmEdge™ Pen 2-Pen Set* | D18: $500.00 | E18: Explain here
A19: Merck | B19: MPSPR595 | C19: 2-Plex Human Cytokine Magnetic Bead Panel | D19: $3,648.00 | E19: Explain here
A20: Merck | B20: MPLX2RCALK25 | C20: Luminex 200 Calibration Kit (25 doses) RUO | D20: $1,036.00 | E20: Explain here
A21: PeptiGrowth | B21: PG00450 | C21: Noggin-like peptide (BMP4,7 inhibitor) 50 micrograms | D21: $3,615.00 | E21: Explain here
A22: Cytek | B22: CB47000050 | C22: Cytek Guava ViaCount® Cell Dispersal Reagent (100 tests) | D22: $468.00 | E22: Explain here
A23: TriLink Biotech | B23: TRL7802100 | C23: CleanCap® AU FLuc saRNA 100 µg | D23: $1,319.33 | E23: Explain here
A24: Jackson ImmunoResearch | B24: JI111007008 | C24: AffiniPure Fab Frag Goat Anti-Rabbit IgG Fc Frag Specific | D24: $305.00 | E24: Explain here
A25: Phoenix Pharmaceuticals | B25: PHEK05742 | C25: Apelin-55 (Human) - EIA Kit 96 wells | D25: $1,964.00 | E25: Explain here
A26: Bethyl Laboratories | B26: BLA150122B | C26: Goat anti-CBL [B17] Ab Biotin | D26: $545.00 | E26: Explain here
A27: nanoComposix | B27: NCAGCB301M | C27: Silver Nanospheres Bare (Citrate) 30 nm(1 mg/mL)1 mL | D27: $701.00 | E27: Explain here
A28: Roche | B28: RO05266114001 | C28: Amplification Kit | D28: $377.00 | E28: Explain here

Sheet Budget Allocation
A1: 2026 Abacus dx Emerging Investigators
A2: Applicant:
A3: Budget - By Supplier | C3: Suppliers:
A4: Merck | B4: =SUMIF(A16:A293, A4, D16:D293) -> 0
A5: Roche | B5: =SUMIF(A16:A293, A5, D16:D293) -> 0
A6: Vector Laboratories | B6: =SUMIF(A16:A293, A6, D16:D293) -> 0
A7: PeptiGrowth | B7: =SUMIF(A16:A293, A7, D16:D293) -> 0
A8: Cytek | B8: =SUMIF(A16:A293, A8, D16:D293) -> 0
A9: TriLink Biotech | B9: =SUMIF(A16:A293, A9, D16:D293) -> 0
A10: Jackson Immunoresearch | B10: =SUMIF(A16:A293, A10, D16:D293) -> 0
A11: Phoenix Pharmaceuticals | B11: =SUMIF(A16:A293, A11, D16:D293) -> 0
A12: Bethyl Laboratories | B12: =SUMIF(A16:A293, A12, D16:D293) -> 0
A13: nanoComposix | B13: =SUMIF(A16:A293, A13, D16:D293) -> 0
A14: Total Budget: | B14: =SUM(B4:B13) -> 0
A15: Supplier | B15: Item Number | C15: Description | D15: Value (AU$) | E15: Intended Use
